bitfinex-derivatives/quotes_ETHF0:USTF0_20250309
["timestamp","ask_amount","ask_price","bid_price","bid_amount"]
[1741500076903,0.00686939,2181.3,2181.2,1.15555]
[1741500077101,0.00686939,2181.3,2181.2,1.65207813]
[1741500078810,0.00686939,2181.3,2181.2,1.65223875]
[1741500079109,0.00686939,2181.3,2181.2,3.62823875]
[1741500079312,0.00686939,2181.3,2181.2,3.07798875]
[1741500079504,0.00686939,2181.3,2181.2,3.62823875]
[1741500079705,0.00686939,2181.3,2181.2,3.07798875]
[1741500080011,0.00686939,2181.3,2181.2,3.62823875]
[1741500080912,0.00686939,2181.3,2181.2,3.62838813]
[1741500082610,0.00686939,2181.3,2181.2,1.10213813]
[1741500082912,0.55708939,2181.3,2181.2,0.58124454]
[1741500083611,0.55708939,2181.3,2181.0,0.6174]
[1741500083612,0.00686939,2181.3,2181.0,0.6174]
[1741500083801,0.55028,2181.1,2181.0,0.6174]
[1741500084005,0.55028,2181.1,2181.0,1.11462937]
[1741500084213,0.6464,2181.2,2181.0,1.11462937]
[1741500084412,0.55028,2181.1,2181.0,0.6174]
[1741500084609,0.5503,2181.0,2180.9,0.6556]
[1741500084811,0.55028,2181.1,2180.9,1.15294987]
[1741500085111,1.19666,2181.2,2181.0,0.49733218]
[1741500085312,1.19666,2181.2,2180.9,1.20591]
[1741500085511,1.19667,2181.2,2181.0,0.49735258]
[1741500085710,1.19667,2181.2,2180.9,1.20591]
[1741500085906,0.00686939,2181.3,2181.0,1.04765161]
[1741500086112,0.55710939,2181.3,2181.0,0.5503]
[1741500086413,0.55026,2181.2,2180.9,1.20593]
[1741500086710,0.55026,2181.2,2181.0,0.49740681]
[1741500086909,0.00686939,2181.3,2180.9,0.6556]
[1741500087311,0.5503,2181.0,2180.9,0.6556]
[1741500087506,0.5503,2181.0,2180.9,1.1530416]
[1741500087712,1.38246939,2181.3,2180.8,23.78766939]
[1741500087909,0.00686939,2181.3,2180.8,24.33800939]
[1741500088214,0.55029,2181.1,2180.9,0.49744828]
[1741500088412,0.55028,2181.1,2180.8,24.33800939]
[1741500088611,0.5503,2181.0,2180.9,0.49748034]
[1741500089007,0.00686939,2181.3,2180.8,23.78766939]
[1741500089008,0.55033,2180.9,2180.8,23.78766939]
[1741500094613,0.55033,2180.9,2180.8,0.00686939]
[1741500095422,0.55045,2180.4,2180.3,3.2078]
[1741500095716,0.55045,2180.4,2180.3,4.28797326]
[1741500096117,0.55045,2180.4,2180.3,3.79004336]
[1741500096319,0.55045,2180.4,2179.9,5.5952]
[1741500096320,1.37622,2180.3,2179.6,3.34906818]
[1741500096520,1.37622,2180.3,2179.5,3.2078]
[1741500096521,0.55065,2179.7,2179.5,3.2078]
[1741500096718,0.55062,2179.8,2179.7,0.00686939]
[1741500096920,0.00686939,2180.2,2179.7,0.00686939]
[1741500097123,0.00686939,2180.2,2179.9,0.55057]
[1741500097124,0.55737939,2180.2,2179.9,0.55057]
[1741500097325,0.55737939,2180.2,2180.0,1.2181]
[1741500097529,0.00686939,2180.2,2180.0,1.2181]
[1741500098021,0.00686939,2180.2,2180.1,1.19273]
[1741500098423,0.55053,2180.1,2180.0,1.2181]
[1741500098617,0.00686939,2180.2,2179.7,0.63116939]
[1741500098618,0.5506,2179.8,2179.7,0.63116939]
[1741500098820,0.5506,2179.9,2179.7,0.63116939]
[1741500099025,0.00686939,2180.2,2179.7,0.63116939]
[1741500099326,0.55057,2180.0,2179.7,1.18178939]
[1741500099519,0.55054,2180.1,2179.8,0.5506]
[1741500099726,0.55053,2180.1,2179.8,0.5506]
[1741500100226,0.55053,2180.1,2179.8,0.55059]
[1741500100420,0.55737939,2180.2,2179.9,0.55058]
[1741500100719,0.00686939,2180.2,2180.0,1.18765]
[1741500101116,0.00686939,2180.2,2180.1,1.15373]
[1741500102513,3.2078,2180.6,2180.1,1.15373]
[1741500102514,3.75821,2180.6,2180.1,1.15373]
[1741500102729,0.55044,2180.5,2180.2,0.6075]
[1741500102927,0.55044,2180.5,2180.2,1.158]
[1741500103223,3.2078,2180.6,2180.3,0.55046]
[1741500103431,2.54938,2180.7,2180.4,0.55045]
[1741500103623,2.54938,2180.7,2180.5,0.6021]
[1741500103823,0.55723939,2180.8,2180.6,0.6195]
[1741500104321,0.00686939,2180.8,2180.6,0.6195]
[1741500104616,0.00686939,2180.8,2180.6,1.16989]
[1741500104928,0.55722939,2180.8,2180.6,0.6195]
[1741500105126,0.00686939,2180.8,2180.6,1.1699]
[1741500105528,0.00686939,2180.8,2180.7,0.55038]
[1741500105724,0.00686939,2180.8,2180.7,1.17118]
[1741500106121,0.00686939,2180.8,2180.7,3.17218]
[1741500108331,0.00686939,2180.8,2180.7,3.66391509]
[1741500108632,0.00686939,2180.8,2180.7,4.24147678]
[1741500109127,0.00686939,2180.8,2180.7,1.69009678]
[1741500109327,0.55721939,2180.8,2180.7,1.6902061]
[1741500110024,0.55721939,2180.8,2180.7,1.11264441]
[1741500110330,0.55721939,2180.8,2180.7,1.11284067]
[1741500110625,0.00686939,2180.8,2180.7,1.11284067]
[1741500111230,0.00686939,2180.8,2180.7,1.11282359]
[1741500111433,0.55721939,2180.8,2180.7,1.11282359]
[1741500113734,0.55721939,2180.8,2180.7,1.69123037]
[1741500114536,0.00686939,2180.8,2180.7,2.24161037]
[1741500115034,0.00686939,2180.8,2180.7,1.69123037]
[1741500115234,0.55721939,2180.8,2180.7,1.69123037]
[1741500115625,0.00686939,2180.8,2180.7,2.24161037]
[1741500115832,0.00686939,2180.8,2180.7,1.69123037]
[1741500116236,0.00686939,2180.8,2180.7,2.24161037]
[1741500116633,0.55721939,2180.8,2180.7,1.69123037]
[1741500117331,0.00686939,2180.8,2180.7,1.19920678]
[1741500117537,0.00686939,2180.8,2180.7,2.24231789]
[1741500118032,0.00686939,2180.8,2180.7,1.69193789]
[1741500118232,0.00686939,2180.8,2180.7,2.24231789]
[1741500120645,0.55721939,2180.8,2180.7,1.69193789]
[1741500120845,0.00686939,2180.8,2180.7,1.69193789]
[1741500121044,0.00686939,2180.8,2180.7,2.24235485]
[1741500121245,0.00686939,2180.8,2180.7,1.69197485]
[1741500121445,0.00686939,2180.8,2180.7,2.24235485]
[1741500122144,0.00686939,2180.8,2180.7,1.69197485]
[1741500122543,0.55721939,2180.8,2180.7,1.69197485]
[1741500122943,0.55721939,2180.8,2180.7,1.07149733]
[1741500123649,0.55721939,2180.8,2180.7,0.49274636]
[1741500124745,1.20451939,2180.8,2180.7,0.49274636]
[1741500126937,1.20451939,2180.8,2180.7,0.49281401]
[1741500127240,0.65416939,2180.8,2180.5,1.2553]
[1741500127546,0.65416939,2180.8,2180.6,0.57903836]
[1741500127547,0.55038,2180.7,2180.6,0.57903836]
[1741500127741,3.75818,2180.7,2180.6,0.57903836]
[1741500128340,0.55043,2180.5,2180.3,1.14577]
[1741500128544,0.55042,2180.6,2180.4,0.49306558]
[1741500128749,0.55042,2180.6,2180.5,0.49306558]
[1741500128943,3.75819,2180.7,2180.5,0.49306558]
[1741500129147,3.75819,2180.7,2180.4,0.55043]
[1741500129348,3.75819,2180.7,2180.5,0.49306662]
[1741500129540,3.75819,2180.7,2180.6,0.49306662]
[1741500130341,0.55045,2180.5,2180.3,1.14578]
[1741500130537,0.55045,2180.5,2180.4,0.49357109]
[1741500131044,3.2078,2180.7,2180.4,0.57972517]
[1741500131045,6.57579,2180.7,2180.4,0.57972517]
[1741500131244,0.55043,2180.5,2180.4,0.57972517]
[1741500131451,0.55042,2180.6,2180.4,0.57972517]
[1741500131752,0.55044,2180.5,2180.3,0.55047]
[1741500132047,0.55043,2180.5,2180.4,1.74820563]
[1741500132247,5.1998,2180.7,2180.4,2.38230563]
[1741500132451,0.5504,2180.6,2180.5,0.49347845]
[1741500133642,5.1998,2180.7,2180.4,0.6068]
[1741500133840,0.55048,2180.3,2180.2,0.6251]
[1741500134043,0.55048,2180.3,2180.2,1.11859848]
[1741500134446,0.55048,2180.3,2180.2,1.69811155]
[1741500135046,3.2078,2180.4,2180.2,2.24848786]
[1741500135351,3.2078,2180.4,2180.3,0.49339479]
[1741500135653,0.55044,2180.5,2180.3,0.49339479]
[1741500135946,0.55044,2180.5,2180.4,0.49339479]
[1741500136741,5.1998,2180.7,2180.4,0.49339479]
[1741500136955,3.75819,2180.7,2180.5,0.49339479]
[1741500137147,3.75819,2180.7,2180.6,0.49321562]
[1741500137148,3.75818,2180.7,2180.6,0.49321562]
[1741500137450,3.75818,2180.7,2180.6,1.11951562]
[1741500138249,3.2078,2180.7,2180.6,1.11951562]
[1741500138955,0.55038,2180.7,2180.6,1.11951562]
[1741500139156,0.55038,2180.7,2180.6,1.69892037]
[1741500139342,0.00686939,2180.8,2180.6,1.69892037]
[1741500139546,0.55722939,2180.8,2180.7,0.49327369]
[1741500139748,0.55722939,2180.8,2180.6,0.6263]
[1741500139945,0.00686939,2180.8,2180.6,0.6263]
[1741500140345,0.00686939,2180.8,2180.7,1.0436758]
[1741500140543,0.00686939,2180.8,2180.7,1.62301973]
[1741500141144,0.00686939,2180.8,2180.7,1.62296086]
[1741500141357,0.00686939,2180.8,2180.7,1.07258086]
[1741500141957,0.55721939,2180.8,2180.7,1.07258086]
[1741500142345,0.55721939,2180.8,2180.5,3.2078]
[1741500142346,0.5504,2180.6,2180.5,3.2078]
[1741500142546,0.5504,2180.6,2180.5,0.49329132]
[1741500143459,0.55052,2180.2,2179.8,5.2048]
[1741500143752,0.55052,2180.2,2180.1,1.07286202]
[1741500144555,0.55052,2180.2,2180.1,0.49336978]
[1741500145352,0.55052,2180.2,2179.9,1.81778]
[1741500145550,3.75833,2180.1,2179.9,1.2672]
[1741500145750,3.75833,2180.1,2180.0,21.0811399]
[1741500146245,3.75833,2180.1,2180.0,20.588]
[1741500147652,0.55053,2180.1,2180.0,20.588]
[1741500147859,0.55053,2180.1,2180.0,21.08086767]
[1741500148356,0.55053,2180.1,2180.0,20.588]
[1741500148557,3.75833,2180.1,2180.0,20.588]
[1741500151361,0.55055,2180.0,2179.9,0.6216]
[1741500151973,3.2078,2180.1,2179.9,0.6216]
[1741500152267,3.6628,2180.4,2180.0,0.49255171]
[1741500152467,4.21327,2180.4,2180.1,1.04306171]
[1741500152657,0.55048,2180.3,2180.2,1.11595171]
[1741500152862,0.55048,2180.3,2180.2,0.6234]
[1741500153468,3.6628,2180.4,2180.0,0.6071]
[1741500153660,0.5505,2180.2,2180.1,0.6234]
[1741500154367,5.03894,2180.4,2180.0,0.6071]
[1741500154572,5.03894,2180.4,2180.0,1.2044]
[1741500154573,0.55053,2180.1,2180.0,1.2044]
[1741500154770,0.55053,2180.1,2180.0,1.69711737]
[1741500155170,0.55053,2180.1,2180.0,1.09981737]
[1741500155373,0.55053,2180.1,2180.0,1.09985863]
[1741500157366,0.55053,2180.1,2180.0,1.09995987]
[1741500158271,3.2078,2180.4,2180.0,1.09995987]
[1741500158272,0.55051,2180.2,2180.0,1.09995987]
[1741500158468,0.55049,2180.3,2180.1,0.49285987]
[1741500158672,0.55049,2180.3,2180.2,0.6423]
[1741500160472,3.2078,2180.4,2180.2,0.6423]
[1741500160676,3.2078,2180.4,2180.3,0.65]
[1741500160972,3.75825,2180.4,2180.3,0.65]
[1741500161171,3.75825,2180.4,2180.3,1.1428961]
[1741500161977,3.75825,2180.4,2180.3,0.65]
[1741500162479,3.2078,2180.4,2180.3,1.14290288]
[1741500162667,3.75825,2180.4,2180.3,0.65]
[1741500163280,3.75825,2180.4,2180.3,1.1429285]
[1741500163580,3.75825,2180.4,2180.3,1.14292843]
[1741500163782,3.2078,2180.4,2180.3,1.14292843]
[1741500164074,3.75825,2180.4,2180.3,1.14292843]
[1741500165876,3.2078,2180.4,2180.3,1.14292843]
[1741500166077,3.75825,2180.4,2180.3,1.14292843]
[1741500166783,3.2078,2180.4,2180.3,1.14292843]
[1741500167880,3.75825,2180.4,2180.3,1.14292843]
[1741500168383,5.2078,2180.4,2179.7,20.59686939]
[1741500168678,0.55056,2180.0,2179.8,0.4930436]
[1741500168884,0.55056,2180.0,2179.9,0.49308694]
[1741500169386,5.2078,2180.4,2179.9,0.49308694]
[1741500169585,0.55056,2180.0,2179.7,23.05707939]
[1741500169787,0.55056,2180.0,2179.8,0.49311281]
[1741500169981,0.55056,2180.0,2179.9,0.49311281]
[1741500170385,0.55056,2180.0,2179.8,0.57919116]
[1741500170586,3.2078,2180.1,2179.7,22.50646939]
[1741500170885,0.55058,2179.9,2179.8,0.49318908]
[1741500171186,3.2078,2180.1,2179.8,0.49318908]
[1741500171382,0.55055,2180.0,2179.7,23.05709939]
[1741500171580,0.55055,2180.0,2179.8,0.49345715]
[1741500171781,0.55055,2180.0,2179.9,0.49346011]
[1741500172987,0.5506,2179.8,2179.7,21.86006939]
[1741500173181,0.5506,2179.8,2179.7,21.09051762]
[1741500173387,0.5506,2179.8,2179.7,1.08036677]
[1741500174085,0.55059,2179.9,2179.7,1.08036677]
[1741500174285,0.55059,2179.9,2179.8,0.49364823]
[1741500174589,0.5506,2179.8,2179.7,0.58671854]
[1741500174782,3.7584,2179.8,2179.7,0.50046738]
[1741500175882,3.7584,2179.8,2179.7,0.50038709]
[1741500176185,3.7584,2179.8,2179.7,1.08005819]
[1741500176782,3.7584,2179.8,2179.7,0.50038709]
[1741500177187,3.7584,2179.8,2179.7,0.00686939]
[1741500179881,0.55073,2179.3,2179.2,3.2078]
[1741500180082,0.55073,2179.3,2179.2,4.9338477]
[1741500180291,0.55073,2179.3,2179.2,5.51308675]
[1741500181783,0.55073,2179.3,2179.2,4.89068675]
[1741500182081,0.55073,2179.3,2179.2,0.57923905]
[1741500182287,0.55073,2179.3,2179.2,0.52718161]
[1741500182790,3.21466939,2179.5,2179.0,0.00686939]
[1741500182991,3.75858,2179.1,2179.0,0.00686939]
[1741500183488,10.98648,2179.1,2179.0,0.00686939]
[1741500183882,6.98948,2179.1,2179.0,0.00686939]
[1741500184292,6.98948,2179.1,2178.1,3.3549328]
[1741500184293,1.37732,2178.6,2177.7,2.985]
[1741500184583,10.8937,2179.1,2177.9,0.49203335]
[1741500184584,3.2078,2178.2,2177.9,0.49203335]
[1741500184791,0.55108,2177.9,2177.8,11.18564358]
[1741500184987,0.55108,2177.9,2177.8,11.67769129]
[1741500185185,0.55108,2177.9,2177.8,11.67765552]
[1741500185788,0.55108,2177.9,2177.8,1.2751]
[1741500187190,0.55113,2177.7,2177.6,0.00688531]
[1741500187392,0.55113,2177.7,2177.6,5.31e-06]
[1741500187393,2.56113,2177.7,2177.6,5.31e-06]
[1741500187685,6.56113,2177.7,2177.6,5.31e-06]
[1741500189184,9.99713,2177.7,2177.6,5.31e-06]
[1741500189495,9.446,2177.7,2176.4,1.214]
[1741500189683,3.2078,2177.2,2176.7,0.55139]
[1741500189888,0.55133,2177.0,2176.6,0.5514]
[1741500190187,5.2288,2177.2,2176.5,3.2078]
[1741500190386,3.2078,2177.2,2176.8,0.55135]
[1741500190586,0.00688531,2177.1,2176.6,2.024]
[1741500190890,0.00688531,2177.1,2176.8,3.2078]
[1741500191283,0.00688531,2177.1,2176.9,0.6452]
[1741500191490,0.00688531,2177.1,2177.0,0.6223]
[1741500191690,0.55817531,2177.1,2177.0,0.6223]
[1741500191891,0.00688531,2177.1,2177.0,0.6223]
[1741500192388,0.55817531,2177.1,2177.0,0.6223]
[1741500192990,0.00688531,2177.1,2176.9,0.6452]
[1741500193390,0.55817531,2177.1,2176.9,0.6452]
[1741500193593,0.00688531,2177.1,2176.9,0.6452]
[1741500193984,3.2078,2177.6,2176.9,0.6452]
[1741500194189,3.75894,2177.7,2177.3,0.55122]
[1741500194392,1.37751,2178.3,2177.1,3.2078]
[1741500194393,0.55116,2177.6,2177.4,0.6127]
[1741500194690,0.55117,2177.6,2177.4,0.6127]
[1741500194993,3.2078,2177.7,2177.4,0.6127]
[1741500195188,0.55803531,2177.7,2177.4,0.6127]
[1741500195394,0.55802531,2177.7,2177.4,0.6127]
[1741500195782,0.00688531,2177.7,2177.4,4.37169]
[1741500195988,0.55803531,2177.7,2177.4,0.6127]
[1741500196794,0.00688531,2177.7,2177.6,0.55116]
[1741500197010,3.2078,2178.0,2177.5,2.035]
[1741500197197,3.2078,2178.0,2177.7,3.2078]
[1741500197398,0.551,2178.3,2177.9,0.55107]
[1741500197595,0.551,2178.3,2177.7,3.2078]
[1741500197791,0.551,2178.3,2178.0,0.55105]
[1741500197991,2.035,2178.4,2177.7,3.2078]
[1741500198191,0.00688531,2178.4,2177.7,4.58564]
[1741500198398,0.00688531,2178.4,2178.3,0.55098]
[1741500199400,0.00688531,2178.4,2178.2,0.551]
[1741500199602,0.00688531,2178.4,2178.1,0.6248]
[1741500199804,0.00688531,2178.4,2178.3,0.55098]
[1741500200603,3.2078,2178.5,2178.4,0.55096]
[1741500200996,3.75864,2178.9,2178.3,3.2078]
[1741500201196,0.55087,2178.8,2178.4,0.55094]
[1741500201605,0.55775531,2178.8,2178.4,0.55782531]
[1741500202103,0.00688531,2178.8,2178.5,0.55092]
[1741500202300,0.55775531,2178.8,2178.4,0.55783531]
[1741500202597,0.55775531,2178.8,2178.4,0.00688531]
[1741500202796,0.00688531,2178.8,2178.5,0.55092]
[1741500203400,0.55774531,2178.8,2178.5,0.55092]
[1741500204200,0.55774531,2178.8,2178.4,0.55783531]
[1741500204509,0.55775531,2178.8,2178.4,0.55783531]
[1741500204706,0.55088,2178.7,2178.4,0.55783531]
[1741500205202,0.55775531,2178.8,2178.4,0.55783531]
[1741500205404,0.55776531,2178.8,2178.4,0.55783531]
[1741500205797,0.55088,2178.7,2178.4,0.55783531]
[1741500206004,0.55775531,2178.8,2178.5,0.55093]
[1741500207302,0.55775531,2178.8,2178.4,0.55782531]
[1741500207303,0.55089,2178.7,2178.4,0.55782531]
[1741500207502,0.00688531,2178.8,2178.4,0.00688531]
[1741500207702,0.55775531,2178.8,2178.5,0.55092]
[1741500208102,0.55775531,2178.8,2178.4,0.55782531]
[1741500208103,0.55089,2178.7,2178.4,0.55782531]
[1741500208500,0.55093,2178.5,2178.4,0.00688531]
[1741500209005,0.55092,2178.6,2178.4,0.00688531]
[1741500209504,0.55093,2178.5,2178.4,0.00688531]
[1741500211701,3.2078,2178.6,2178.4,0.55782531]
[1741500212017,3.75872,2178.6,2178.4,0.00688531]
[1741500212206,0.55093,2178.5,2178.4,0.00688531]
[1741500213297,3.2078,2178.6,2178.4,0.00688531]
[1741500213905,3.75871,2178.6,2178.4,0.55783531]
[1741500214101,3.75871,2178.6,2178.4,0.00688531]
[1741500214803,3.75871,2178.6,2178.4,0.55783531]
[1741500215008,3.75871,2178.6,2178.4,0.00688531]
[1741500215410,3.2078,2178.6,2178.4,0.55784531]
[1741500215705,3.2078,2178.6,2178.5,0.55093]
[1741500216206,0.55774531,2178.8,2178.5,0.55093]
[1741500216602,0.55088,2178.7,2178.5,0.55093]
[1741500216804,0.55775531,2178.8,2178.5,0.55092]
[1741500217709,0.55775531,2178.8,2178.4,0.00688531]
[1741500217908,0.55775531,2178.8,2178.5,0.55091]
[1741500218307,0.00688531,2178.8,2178.5,0.55091]
[1741500218504,0.00688531,2178.8,2178.4,0.00688531]
[1741500218703,0.55089,2178.7,2178.4,0.55781531]
[1741500218903,0.55089,2178.7,2178.4,0.00688531]
[1741500219098,0.55089,2178.7,2178.5,0.55093]
[1741500219308,0.55089,2178.7,2178.4,0.55783531]
[1741500219515,0.55775531,2178.8,2178.4,0.55783531]
[1741500219709,0.00688531,2178.8,2178.4,0.55783531]
[1741500219909,0.55089,2178.7,2178.4,0.55783531]
[1741500220510,0.55775531,2178.8,2178.5,0.55092]
[1741500221308,0.55775531,2178.8,2178.6,0.6199]
[1741500222408,0.55088,2178.7,2178.6,0.6199]
[1741500223217,0.55088,2178.7,2178.6,1.11244488]
[1741500223619,0.55775531,2178.8,2178.6,1.11244488]
[1741500223819,0.55775531,2178.8,2178.6,0.6199]
[1741500224313,0.55775531,2178.8,2178.6,1.2413]
[1741500224919,0.55775531,2178.8,2178.7,0.49294537]
[1741500225718,0.55775531,2178.8,2178.6,1.2413]
[1741500225719,0.00688531,2178.8,2178.6,1.2413]
[1741500225917,0.55774531,2178.8,2178.7,0.49329766]
[1741500231721,0.55774531,2178.8,2178.7,0.49469636]
[1741500232024,0.00688531,2178.8,2178.7,0.49470202]
[1741500232226,0.55774531,2178.8,2178.7,0.49470202]
[1741500234226,0.55774531,2178.8,2178.7,0.49470381]
[1741500240730,0.00688531,2178.8,2178.7,0.49470381]
[1741500240920,0.55774531,2178.8,2178.7,0.49470381]
[1741500241126,0.00688531,2178.8,2178.7,0.49470381]
[1741500241325,0.00688531,2178.8,2178.7,1.09690381]
[1741500241624,0.00688531,2178.8,2178.7,1.09676794]
[1741500243432,0.55774531,2178.8,2178.7,1.09676794]
[1741500243631,0.00688531,2178.8,2178.7,0.4944727]
[1741500243834,0.55774531,2178.8,2178.7,0.4944727]
[1741500247741,0.00688531,2178.8,2178.7,0.4945]
[1741500248041,0.55774531,2178.8,2178.7,0.4945]
[1741500249338,0.00688531,2178.8,2178.7,0.4945]
[1741500249644,0.55774531,2178.8,2178.7,0.4945]
[1741500249841,0.55774531,2178.8,2178.7,1.1212]
[1741500250035,0.00688531,2178.8,2178.7,2.26548]
[1741500250237,0.00688531,2178.8,2178.7,1.7146]
[1741500251741,0.55084,2178.9,2178.7,1.2201]
[1741500251942,3.75862,2179.0,2178.8,0.49430697]
[1741500252142,3.75862,2179.0,2178.7,1.77098]
[1741500252143,3.75862,2179.0,2178.9,1.13120697]
[1741500253846,3.75862,2179.0,2178.9,1.13108462]
[1741500255850,3.75862,2179.0,2178.9,1.13099923]
[1741500256247,0.55082,2179.0,2178.9,1.13099923]
[1741500257955,0.55082,2179.0,2178.9,1.13094298]
[1741500260053,0.55082,2179.0,2178.9,1.13090794]
[1741500261557,0.55082,2179.0,2178.9,0.49400794]
[1741500266159,0.00688531,2179.2,2178.9,0.4941133]
[1741500266355,0.00688531,2179.2,2179.0,0.4941133]
[1741500266560,0.55083,2178.9,2178.8,2.044]
[1741500266759,0.00688531,2179.2,2178.8,2.53811549]
[1741500266956,0.55079,2179.1,2178.9,1.04494549]
[1741500267157,0.55766531,2179.2,2179.0,0.49411549]
[1741500267366,0.55766531,2179.2,2178.9,0.55083]
[1741500267367,0.55766531,2179.2,2179.1,1.11231549]
[1741500268160,0.55766531,2179.2,2179.1,1.11224043]
[1741500270171,0.55766531,2179.2,2179.1,1.11220486]
[1741500270568,0.55766531,2179.2,2179.1,1.73740486]
[1741500270765,0.00688531,2179.2,2179.1,1.73740486]
[1741500271862,0.55763531,2179.2,2179.1,1.73740486]
[1741500272263,0.00688531,2179.2,2179.1,1.73740486]
[1741500272465,0.00688531,2179.2,2179.1,2.33660486]
[1741500272766,0.00688531,2179.2,2179.1,2.88738486]
[1741500273567,0.55763531,2179.2,2179.1,2.33660486]
[1741500274265,0.55763531,2179.2,2179.1,1.7371819]
[1741500276368,0.00688531,2179.2,2179.1,1.73726018]
[1741500277361,0.55763531,2179.2,2179.1,1.73726018]
[1741500277770,0.00688531,2179.2,2179.1,2.0779439]
[1741500278362,0.00688531,2179.2,2179.1,2.62890132]
[1741500278765,0.00688531,2179.2,2179.1,2.07812132]
[1741500279679,0.55763531,2179.2,2179.1,2.07812132]
[1741500280371,0.00688531,2179.2,2179.1,1.58408372]
[1741500280675,0.00688531,2179.2,2179.1,2.07810901]
[1741500281476,3.76543531,2179.2,2179.1,2.07810901]
[1741500282381,3.76543531,2179.2,2179.1,1.73742529]
[1741500282575,3.76543531,2179.2,2179.1,0.49402529]
[1741500284481,0.00688531,2179.2,2179.1,0.49402855]
[1741500284681,0.55763531,2179.2,2179.1,0.49402855]
[1741500285484,0.00688531,2179.2,2179.1,0.49402855]
[1741500285779,0.00688531,2179.2,2179.1,1.04480855]
[1741500285972,0.00688531,2179.2,2179.1,0.49402855]
[1741500286177,0.55763531,2179.2,2179.1,0.49402855]
[1741500286580,0.00688531,2179.2,2179.1,0.49402855]
[1741500286782,0.00688531,2179.2,2179.1,1.04480855]
[1741500289285,0.00688531,2179.2,2179.1,0.49402855]
[1741500290185,0.00688531,2179.2,2179.1,1.04480855]
[1741500291182,0.00688531,2179.2,2179.1,0.49402855]
[1741500291683,0.00688531,2179.2,2179.1,1.04480855]
[1741500291878,0.00688531,2179.2,2179.1,1.04457068]
[1741500292488,0.00688531,2179.2,2179.1,0.83674047]
[1741500292687,0.00688531,2179.2,2179.1,1.38752047]
[1741500294184,3.2078,2179.5,2179.3,0.55071]
[1741500294383,3.2078,2179.5,2179.4,1.72959068]
[1741500294693,0.55066,2179.6,2179.4,1.72959068]
[1741500294887,0.616,2179.7,2179.4,1.2358]
[1741500295083,1.2517,2179.8,2179.5,0.49375173]
[1741500295285,0.55064,2179.7,2179.6,0.49375173]
[1741500297088,0.55064,2179.7,2179.6,0.49375402]
[1741500297881,0.00688531,2179.8,2179.6,0.49375402]
[1741500298087,0.55748531,2179.8,2179.7,0.49375402]
[1741500300891,0.55748531,2179.8,2179.5,0.62828531]
[1741500300892,0.55065,2179.6,2179.5,0.62828531]
[1741500301090,3.75845,2179.6,2179.5,1.1219937]
[1741500301286,3.75845,2179.6,2179.5,0.5005937]
[1741500302494,3.75845,2179.6,2179.5,0.00688531]
[1741500304196,0.55068,2179.5,2179.4,1.5069]
[1741500304395,0.55078,2179.1,2179.0,20.598]
[1741500304597,3.75858,2179.1,2179.0,0.4938432]
[1741500305396,3.2078,2179.1,2179.0,0.4938432]
[1741500305594,3.75858,2179.1,2179.0,0.4938432]
[1741500305797,0.55078,2179.1,2179.0,0.4938432]
[1741500306093,0.55078,2179.1,2179.0,1.1495432]
[1741500308696,5.1938,2179.4,2179.0,1.1495432]
[1741500308893,0.55074,2179.3,2179.1,0.4938432]
[1741500309094,0.55074,2179.3,2179.2,0.4938432]
[1741500310592,0.55073,2179.3,2179.2,0.49377123]
[1741500312506,3.6628,2179.7,2179.2,0.49377123]
[1741500312701,0.55069,2179.5,2179.3,1.10937345]
[1741500312903,3.6628,2179.7,2179.4,1.09187345]
[1741500313101,3.6628,2179.7,2179.5,1.10897345]
[1741500313102,3.2078,2179.7,2179.5,1.10897345]
[1741500313311,3.2078,2179.7,2179.5,0.6152]
[1741500313312,0.55065,2179.6,2179.5,0.6152]
[1741500313517,0.55065,2179.6,2179.5,1.10896632]
[1741500315210,0.55065,2179.6,2179.5,0.49376632]
[1741500315710,1.45315,2179.6,2179.5,0.49376632]
[1741500316114,1.45315,2179.6,2179.0,0.5981]
[1741500316115,0.9025,2179.6,2179.0,0.5981]
[1741500316311,0.55075,2179.2,2179.1,0.49387703]
[1741500316514,3.75855,2179.2,2179.1,0.49387703]
[1741500316912,0.55072,2179.4,2179.1,0.49387703]
[1741500317122,0.55073,2179.3,2179.2,0.49387703]
[1741500317616,0.55069,2179.5,2179.2,0.49387703]
[1741500317817,0.55069,2179.5,2179.3,0.49387703]
[1741500318021,0.55069,2179.5,2179.4,1.11967703]
[1741500318616,0.55069,2179.5,2179.4,1.1196262]
[1741500319522,5.65668531,2179.8,2179.4,1.1196262]
[1741500319523,5.20168531,2179.8,2179.4,1.1196262]
[1741500319713,0.55066,2179.6,2179.5,1.7627262]
[1741500319915,5.75230531,2179.8,2179.5,2.3134062]
[1741500320215,0.55063,2179.7,2179.6,0.4938262]
[1741500320619,0.55063,2179.7,2179.6,0.49378113]
[1741500320819,3.21468531,2179.8,2179.6,0.49378113]
[1741500321022,3.76528531,2179.8,2179.7,0.49378113]
[1741500321520,0.00688531,2179.8,2179.7,0.49378113]
[1741500322021,0.55748531,2179.8,2179.7,0.49378113]
[1741500323226,0.00688531,2179.8,2179.7,0.49378113]
[1741500326923,0.00688531,2179.8,2179.7,0.4933302]
[1741500333232,3.2078,2180.2,2179.7,0.4933302]
[1741500333430,3.2078,2180.2,2179.8,0.4933302]
[1741500333622,3.2078,2180.2,2179.9,1.1463302]
[1741500333824,3.2078,2180.2,2180.0,0.4933302]
[1741500334033,3.2078,2180.5,2180.1,0.4933302]
[1741500334230,3.2078,2180.5,2180.2,0.4933302]
[1741500334532,0.00688531,2180.5,2180.3,1.0958302]
[1741500334725,0.00688531,2180.5,2180.4,1.13872731]
[1741500335331,3.2078,2180.8,2180.4,1.13872731]
[1741500335533,3.2078,2180.8,2180.5,0.49272731]
[1741500335731,3.2078,2180.8,2180.6,0.49272731]
[1741500335933,3.2078,2180.8,2180.5,2.9158]
[1741500336234,3.436,2181.9,2180.6,0.4924523]
[1741500336235,3.2078,2181.1,2180.6,0.4924523]
[1741500336527,0.00444765,2180.9,2180.7,0.4924523]
[1741500336733,0.00444765,2180.9,2180.8,1.0949523]
[1741500337031,0.00444765,2180.9,2180.8,1.09458625]
[1741500337427,3.2078,2181.4,2180.8,1.09458625]
[1741500337428,3.2078,2181.4,2180.8,8.30238625]
[1741500337622,3.2078,2181.4,2180.9,2.48908625]